[Event "RUS-ch Blitz 2021"]
[Site "Sochi"]
[Date "2021.10.11"]
[Round "6.8"]
[White "Matinian, Nikita"]
[Black "Iljiushenok, Ilia"]
[Result "0-1"]
[ECO "B23"]
[WhiteElo "2454"]
[BlackElo "2554"]
[Annotator "ChessBase"]
[PlyCount "128"]
[EventDate "2021.10.11"]
[EventType "blitz"]
[EventCountry "RUS"]
[SourceTitle "playchess.com"]
[Source "ChessBase"]
[SourceQuality "1"]
[TimeControl "180+2"]

1. e4 {[%emt 0:00:00]} c5 {[%emt 0:00:00]} 2. Nc3 {[%emt 0:00:00]} a6 {[%emt 0:
00:00]} 3. f4 {[%emt 0:00:00]} d6 {[%emt 0:00:12]} 4. Nf3 {[%emt 0:00:04]} Nc6
{[%emt 0:00:07]} 5. d4 {[%emt 0:00:19]} cxd4 {[%emt 0:00:05]} 6. Nxd4 {[%emt 0:
00:00]} Bd7 {[%emt 0:00:07]} 7. Nxc6 {[%emt 0:00:27]} Bxc6 {[%emt 0:00:00]} 8.
Be3 {[%emt 0:00:03]} Nf6 {[%emt 0:00:18]} 9. Bd3 {[%emt 0:00:00]} e6 {[%emt 0:
00:00]} 10. Qe2 {[%emt 0:00:09]} Be7 {[%emt 0:00:19]} 11. O-O-O {[%emt 0:00:01]
} Qc7 {[%emt 0:00:00]} 12. g4 {[%emt 0:00:00]} b5 {[%emt 0:00:04]} 13. g5 {
[%emt 0:00:17]} Nd7 {[%emt 0:00:00]} 14. Rhe1 {[%emt 0:00:03]} O-O {[%emt 0:00:
38]} 15. h4 {[%emt 0:00:18]} b4 {[%emt 0:00:04]} 16. Nb1 {[%emt 0:00:21]} a5 {
[%emt 0:00:00]} 17. h5 {[%emt 0:00:00]} a4 {[%emt 0:00:04]} 18. g6 {[%emt 0:00:
00]} h6 {[%emt 0:00:13]} 19. gxf7+ {[%emt 0:00:00]} Rxf7 {[%emt 0:00:00]} 20.
Qg4 {[%emt 0:00:16]} Nf8 {[%emt 0:00:39]} 21. f5 {[%emt 0:00:00]} exf5 {
[%emt 0:00:00]} 22. exf5 {[%emt 0:00:00]} b3 {[%emt 0:00:00]} 23. axb3 {
[%emt 0:00:00]} axb3 {[%emt 0:00:00]} 24. Bc4 {[%emt 0:00:23]} d5 {[%emt 0:00:
00]} 25. Bxb3 {[%emt 0:00:05]} Bf6 {[%emt 0:00:09]} 26. Bxh6 {[%emt 0:00:12]}
Ra1 {[%emt 0:00:13]} 27. Bg5 {[%emt 0:00:09]} Nh7 {[%emt 0:00:42]} 28. Bxf6 {
[%emt 0:00:00]} Nxf6 {[%emt 0:00:00]} 29. Qd4 {[%emt 0:00:00]} Qh2 {[%emt 0:00:
00]} 30. Rh1 {[%emt 0:00:00]} Qe2 {[%emt 0:00:00]} 31. Rde1 {[%emt 0:00:00]}
Qf3 {[%emt 0:00:00]} 32. h6 {[%emt 0:00:00]} Ne4 {[%emt 0:00:00]} 33. h7+ {
[%emt 0:00:51]} Kh8 {[%emt 0:00:00]} 34. Qe5 {[%emt 0:00:00]} Qxf5 {[%emt 0:00:
14]} 35. Qxf5 {[%emt 0:00:02]} Rxf5 {[%emt 0:00:00]} 36. c4 {[%emt 0:00:10]}
dxc4 {[%emt 0:00:00]} 37. Bxc4 {[%emt 0:00:00]} Rc5 {[%emt 0:00:00]} 38. b3 {
[%emt 0:00:00]} Ra2 {[%emt 0:00:08]} 39. Nc3 {[%emt 0:00:02]} Nxc3 {[%emt 0:00:
00]} 40. Ref1 {[%emt 0:00:00]} Ra8 {[%emt 0:00:04]} 41. Kb2 {[%emt 0:00:04]}
Ne4 {[%emt 0:00:00]} 42. Rf4 {[%emt 0:00:00]} Nd6 {[%emt 0:00:00]} 43. Rc1 {
[%emt 0:00:07]} Nxc4+ {[%emt 0:00:05]} 44. Rfxc4 {[%emt 0:00:00]} Rxc4 {
[%emt 0:00:00]} 45. Rxc4 {[%emt 0:00:00]} Bd5 {[%emt 0:00:00]} 46. Rh4 {
[%emt 0:00:00]} Rb8 {[%emt 0:00:04]} 47. b4 {[%emt 0:00:03]} Be6 {[%emt 0:00:
05]} 48. Kc3 {[%emt 0:00:01]} Rb5 {[%emt 0:00:00]} 49. Rh2 {[%emt 0:00:00]} g5
{[%emt 0:00:03]} 50. Rh6 {[%emt 0:00:03]} Bf7 {[%emt 0:00:00]} 51. Rf6 {
[%emt 0:00:07]} Rb7 {[%emt 0:00:01]} 52. Rf5 {[%emt 0:00:01]} g4 {[%emt 0:00:
00]} 53. Rg5 {[%emt 0:00:01]} Be6 {[%emt 0:00:02]} 54. Rg6 {[%emt 0:00:00]}
Rc7+ {[%emt 0:00:03]} 55. Kd4 {[%emt 0:00:01]} Bf7 {[%emt 0:00:00]} 56. Rg5 {
[%emt 0:00:06]} Kxh7 {[%emt 0:00:00]} 57. b5 {[%emt 0:00:00]} Rc4+ {[%emt 0:00:
03]} 58. Ke3 {[%emt 0:00:05]} Rb4 {[%emt 0:00:00]} 59. Kf2 {[%emt 0:00:03]} Kh6
{[%emt 0:00:00]} 60. Rc5 {[%emt 0:00:02]} Rb3 {[%emt 0:00:07]} 61. Rc6+ {
[%emt 0:00:06]} Kg5 {[%emt 0:00:00]} 62. b6 {[%emt 0:00:00]} g3+ {[%emt 0:00:
04]} 63. Kf1 {[%emt 0:00:00]} Rb1+ {[%emt 0:00:02]} 64. Ke2 {[%emt 0:00:06]} g2
{[%emt 0:00:01]} 0-1

[Event "RUS-ch Blitz 2021"]
[Site "Sochi"]
[Date "2021.10.11"]
[Round "6.9"]
[White "Afanasiev, Nikita"]
[Black "Vastrukhin, Oleg"]
[Result "0-1"]
[ECO "A01"]
[WhiteElo "2560"]
[BlackElo "2382"]
[Annotator "ChessBase"]
[PlyCount "72"]
[EventDate "2021.10.11"]
[EventType "blitz"]
[EventCountry "RUS"]
[SourceTitle "playchess.com"]
[Source "ChessBase"]
[SourceQuality "1"]
[TimeControl "180+2"]

1. b3 {[%emt 0:00:00]} Nf6 {[%emt 0:00:06]} 2. Bb2 {[%emt 0:00:02]} d5 {
[%emt 0:00:01]} 3. g3 {[%emt 0:00:00]} Nc6 {[%emt 0:00:03]} 4. Nf3 {[%emt 0:00:
15]} Bg4 {[%emt 0:00:00]} 5. Bg2 {[%emt 0:00:00]} Qd7 {[%emt 0:00:04]} 6. h3 {
[%emt 0:00:00]} Bxf3 {[%emt 0:00:03]} 7. exf3 {[%emt 0:00:08]} e6 {[%emt 0:00:
08]} 8. O-O {[%emt 0:00:01]} Be7 {[%emt 0:00:05]} 9. f4 {[%emt 0:00:00]} O-O {
[%emt 0:00:03]} 10. Re1 {[%emt 0:00:01]} a5 {[%emt 0:00:02]} 11. a3 {[%emt 0:
00:07]} a4 {[%emt 0:00:27]} 12. b4 {[%emt 0:00:00]} Na7 {[%emt 0:00:04]} 13. d3
{[%emt 0:00:16]} c5 {[%emt 0:00:06]} 14. bxc5 {[%emt 0:00:06]} Bxc5 {[%emt 0:
00:00]} 15. Bxf6 {[%emt 0:00:03]} gxf6 {[%emt 0:00:00]} 16. d4 {[%emt 0:00:05]}
Bd6 {[%emt 0:00:07]} 17. c4 {[%emt 0:00:08]} dxc4 {[%emt 0:00:12]} 18. Nc3 {
[%emt 0:00:00]} Rfd8 {[%emt 0:00:07]} 19. Nxa4 {[%emt 0:00:05]} Nc8 {[%emt 0:
00:06]} 20. Nb2 {[%emt 0:00:31]} Nb6 {[%emt 0:00:06]} 21. f5 {[%emt 0:00:23]}
exf5 {[%emt 0:00:08]} 22. Qf3 {[%emt 0:00:13]} Bf8 {[%emt 0:00:07]} 23. Nd1 {
[%emt 0:00:08]} Nd5 {[%emt 0:00:19]} 24. Qh5 {[%emt 0:00:00]} Rxa3 {[%emt 0:00:
16]} 25. Rxa3 {[%emt 0:00:44]} Bxa3 {[%emt 0:00:00]} 26. Bxd5 {[%emt 0:00:08]}
Qxd5 {[%emt 0:00:00]} 27. Ne3 {[%emt 0:00:00]} Qe4 {[%emt 0:00:15]} 28. Kh2 {
[%emt 0:00:00]} Bf8 {[%emt 0:00:04]} 29. Re2 {[%emt 0:00:00]} c3 {[%emt 0:00:
12]} 30. Nxf5 {[%emt 0:00:13]} Qc6 {[%emt 0:00:00]} 31. Qg4+ {[%emt 0:00:20]}
Kh8 {[%emt 0:00:01]} 32. Qh4 {[%emt 0:00:05]} b5 {[%emt 0:00:10]} 33. Qg4 {
[%emt 0:00:04]} c2 {[%emt 0:00:09]} 34. d5 {[%emt 0:00:00]} Rxd5 {[%emt 0:00:
06]} 35. Ne3 {[%emt 0:00:03]} c1=Q {[%emt 0:00:15]} 36. Nxd5 {[%emt 0:00:03]}
Qxd5 {[%emt 0:00:00]} 0-1

[Event "RUS-ch Blitz 2021"]
[Site "Sochi"]
[Date "2021.10.11"]
[Round "6.10"]
[White "Rozum, Ivan"]
[Black "Kukhmazov, Arsen"]
[Result "1-0"]
[ECO "A01"]
[WhiteElo "2529"]
[BlackElo "2472"]
[Annotator "ChessBase"]
[PlyCount "102"]
[EventDate "2021.10.11"]
[EventType "blitz"]
[EventCountry "RUS"]
[SourceTitle "playchess.com"]
[Source "ChessBase"]
[SourceQuality "1"]
[TimeControl "180+2"]

1. b3 {[%emt 0:00:00]} d5 {[%emt 0:00:00]} 2. Bb2 {[%emt 0:00:08]} c6 {[%emt 0:
00:04]} 3. d3 {[%emt 0:00:00]} Bf5 {[%emt 0:00:00]} 4. Nd2 {[%emt 0:00:00]} h6
{[%emt 0:00:10]} 5. e4 {[%emt 0:00:00]} Bh7 {[%emt 0:00:00]} 6. g3 {[%emt 0:00:
05]} e6 {[%emt 0:00:00]} 7. Bg2 {[%emt 0:00:00]} Nf6 {[%emt 0:00:03]} 8. Nh3 {
[%emt 0:00:14]} a5 {[%emt 0:00:00]} 9. a3 {[%emt 0:00:12]} Bc5 {[%emt 0:00:15]}
10. O-O {[%emt 0:00:02]} O-O {[%emt 0:00:02]} 11. Qe2 {[%emt 0:00:06]} Na6 {
[%emt 0:00:05]} 12. Kh1 {[%emt 0:00:06]} dxe4 {[%emt 0:00:23]} 13. dxe4 {
[%emt 0:00:00]} Bd4 {[%emt 0:00:01]} 14. c3 {[%emt 0:00:14]} Ba7 {[%emt 0:00:
08]} 15. b4 {[%emt 0:00:09]} e5 {[%emt 0:00:52]} 16. Rad1 {[%emt 0:00:11]} Qc7
{[%emt 0:00:07]} 17. Nc4 {[%emt 0:00:02]} a4 {[%emt 0:00:16]} 18. f3 {[%emt 0:
00:28]} Rad8 {[%emt 0:00:02]} 19. Nf2 {[%emt 0:00:02]} Qe7 {[%emt 0:00:25]} 20.
Nd3 {[%emt 0:00:15]} Nd7 {[%emt 0:00:00]} 21. Bc1 {[%emt 0:00:08]} f6 {[%emt 0:
00:20]} 22. Na5 {[%emt 0:00:17]} Rb8 {[%emt 0:00:16]} 23. Nb2 {[%emt 0:00:06]}
Qe6 {[%emt 0:00:13]} 24. Nxa4 {[%emt 0:00:11]} Rfd8 {[%emt 0:00:00]} 25. Nb2 {
[%emt 0:00:02]} Nc7 {[%emt 0:00:02]} 26. Qc4 {[%emt 0:00:03]} Kf8 {[%emt 0:00:
02]} 27. Bh3 {[%emt 0:00:16]} Qxh3 {[%emt 0:00:07]} 28. Qe2 {[%emt 0:00:24]}
Qe6 {[%emt 0:00:00]} 29. Kg2 {[%emt 0:00:03]} Bg8 {[%emt 0:00:04]} 30. Be3 {
[%emt 0:00:00]} Bxe3 {[%emt 0:00:00]} 31. Qxe3 {[%emt 0:00:04]} b6 {[%emt 0:00:
00]} 32. Nac4 {[%emt 0:00:02]} b5 {[%emt 0:00:06]} 33. Na5 {[%emt 0:00:04]} Bf7
{[%emt 0:00:02]} 34. Rd2 {[%emt 0:00:00]} Be8 {[%emt 0:00:03]} 35. Rfd1 {
[%emt 0:00:00]} Rbc8 {[%emt 0:00:01]} 36. Nb7 {[%emt 0:00:01]} Qe7 {[%emt 0:00:
02]} 37. Nxd8 {[%emt 0:00:07]} Qxd8 {[%emt 0:00:02]} 38. c4 {[%emt 0:00:00]}
Ne6 {[%emt 0:00:02]} 39. Rd6 {[%emt 0:00:09]} Ke7 {[%emt 0:00:00]} 40. c5 {
[%emt 0:00:01]} Nd4 {[%emt 0:00:02]} 41. f4 {[%emt 0:00:03]} Qc7 {[%emt 0:00:
03]} 42. Nd3 {[%emt 0:00:00]} Ne6 {[%emt 0:00:03]} 43. Qd2 {[%emt 0:00:01]} Rd8
{[%emt 0:00:02]} 44. Qc3 {[%emt 0:00:04]} Nd4 {[%emt 0:00:00]} 45. fxe5 {
[%emt 0:00:02]} fxe5 {[%emt 0:00:01]} 46. Nxe5 {[%emt 0:00:01]} Nxe5 {[%emt 0:
00:05]} 47. Qxd4 {[%emt 0:00:00]} Nf7 {[%emt 0:00:00]} 48. e5 {[%emt 0:00:02]}
Rc8 {[%emt 0:00:02]} 49. e6 {[%emt 0:00:00]} Kf8 {[%emt 0:00:04]} 50. exf7 {
[%emt 0:00:03]} Bxf7 {[%emt 0:00:00]} 51. Rd8+ {[%emt 0:00:00]} Qxd8 {[%emt 0:
00:05]} 1-0

[Event "RUS-ch Blitz 2021"]
[Site "Sochi"]
[Date "2021.10.11"]
[Round "6.11"]
[White "Khanin, Semen"]
[Black "Petrov, Nikita"]
[Result "1/2-1/2"]
[ECO "B45"]
[WhiteElo "2521"]
[BlackElo "2539"]
[Annotator "ChessBase"]
[PlyCount "118"]
[EventDate "2021.10.11"]
[EventType "blitz"]
[EventCountry "RUS"]
[SourceTitle "playchess.com"]
[Source "ChessBase"]
[SourceQuality "1"]
[TimeControl "180+2"]

1. e4 {[%emt 0:00:00]} c5 {[%emt 0:00:00]} 2. Nf3 {[%emt 0:00:18]} e6 {[%emt 0:
00:01]} 3. d4 {[%emt 0:00:00]} cxd4 {[%emt 0:00:00]} 4. Nxd4 {[%emt 0:00:00]}
Nf6 {[%emt 0:00:00]} 5. Nc3 {[%emt 0:00:00]} Nc6 {[%emt 0:00:00]} 6. Ndb5 {
[%emt 0:00:00]} Bb4 {[%emt 0:00:00]} 7. a3 {[%emt 0:00:01]} Bxc3+ {[%emt 0:00:
08]} 8. Nxc3 {[%emt 0:00:00]} d5 {[%emt 0:00:01]} 9. Bd3 {[%emt 0:00:07]} dxe4
{[%emt 0:00:00]} 10. Nxe4 {[%emt 0:00:01]} Nxe4 {[%emt 0:00:02]} 11. Bxe4 {
[%emt 0:00:08]} Qxd1+ {[%emt 0:00:00]} 12. Kxd1 {[%emt 0:00:00]} Bd7 {[%emt 0:
00:00]} 13. c3 {[%emt 0:00:15]} f5 {[%emt 0:00:14]} 14. Bc2 {[%emt 0:00:10]} e5
{[%emt 0:00:00]} 15. f3 {[%emt 0:00:16]} Be6 {[%emt 0:00:09]} 16. Ke2 {[%emt 0:
00:17]} O-O-O {[%emt 0:00:13]} 17. Bg5 {[%emt 0:00:06]} Rde8 {[%emt 0:00:18]}
18. Rhd1 {[%emt 0:00:06]} h6 {[%emt 0:00:15]} 19. Be3 {[%emt 0:00:00]} g5 {
[%emt 0:00:03]} 20. b4 {[%emt 0:00:29]} f4 {[%emt 0:00:44]} 21. Bc5 {[%emt 0:
00:04]} b6 {[%emt 0:00:13]} 22. Bd6 {[%emt 0:00:10]} e4 {[%emt 0:00:12]} 23.
Bxe4 {[%emt 0:00:15]} Bf5 {[%emt 0:00:00]} 24. Kd3 {[%emt 0:00:41]} Bxe4+ {
[%emt 0:00:01]} 25. fxe4 {[%emt 0:00:03]} Rd8 {[%emt 0:00:04]} 26. Kc2 {
[%emt 0:00:01]} Rhe8 {[%emt 0:00:03]} 27. b5 {[%emt 0:00:08]} Na5 {[%emt 0:00:
00]} 28. Rd4 {[%emt 0:00:03]} Rd7 {[%emt 0:00:49]} 29. Rad1 {[%emt 0:00:00]}
Nb7 {[%emt 0:00:01]} 30. Rc4+ {[%emt 0:00:04]} Kd8 {[%emt 0:00:07]} 31. Rcd4 {
[%emt 0:00:09]} Nxd6 {[%emt 0:00:11]} 32. Rxd6 {[%emt 0:00:00]} Rxd6 {[%emt 0:
00:02]} 33. Rxd6+ {[%emt 0:00:02]} Kc7 {[%emt 0:00:00]} 34. Rc6+ {[%emt 0:00:
05]} Kd7 {[%emt 0:00:07]} 35. Kd3 {[%emt 0:00:00]} Re6 {[%emt 0:00:06]} 36. Rc4
{[%emt 0:00:05]} Re5 {[%emt 0:00:03]} 37. a4 {[%emt 0:00:03]} g4 {[%emt 0:00:
00]} 38. Rd4+ {[%emt 0:00:02]} Ke6 {[%emt 0:00:06]} 39. Rd8 {[%emt 0:00:00]}
Rh5 {[%emt 0:00:00]} 40. Re8+ {[%emt 0:00:06]} Kf7 {[%emt 0:00:00]} 41. Ra8 {
[%emt 0:00:01]} Rxh2 {[%emt 0:00:04]} 42. Rxa7+ {[%emt 0:00:00]} Kf6 {[%emt 0:
00:02]} 43. a5 {[%emt 0:00:00]} bxa5 {[%emt 0:00:02]} 44. Ra6+ {[%emt 0:00:07]}
Ke7 {[%emt 0:00:04]} 45. Rxa5 {[%emt 0:00:02]} Rxg2 {[%emt 0:00:00]} 46. b6 {
[%emt 0:00:01]} Rb2 {[%emt 0:00:00]} 47. Ra7+ {[%emt 0:00:02]} Kd6 {[%emt 0:00:
03]} 48. Rg7 {[%emt 0:00:03]} g3 {[%emt 0:00:03]} 49. c4 {[%emt 0:00:00]} Kc6 {
[%emt 0:00:00]} 50. Rg6+ {[%emt 0:00:04]} Kb7 {[%emt 0:00:00]} 51. e5 {[%emt 0:
00:03]} Rxb6 {[%emt 0:00:07]} 52. Rg7+ {[%emt 0:00:04]} Kc8 {[%emt 0:00:02]}
53. Ke4 {[%emt 0:00:01]} Rb4 {[%emt 0:00:03]} 54. Kxf4 {[%emt 0:00:02]} Rxc4+ {
[%emt 0:00:02]} 55. Kf5 {[%emt 0:00:02]} Kd8 {[%emt 0:00:00]} 56. Rxg3 {
[%emt 0:00:01]} Rc6 {[%emt 0:00:03]} 57. e6 {[%emt 0:00:03]} Rc1 {[%emt 0:00:
02]} 58. Kf6 {[%emt 0:00:01]} Rf1+ {[%emt 0:00:01]} 59. Ke5 {[%emt 0:00:03]}
Re1+ {[%emt 0:00:01]} 1/2-1/2

[Event "RUS-ch Blitz 2021"]
[Site "Sochi"]
[Date "2021.10.11"]
[Round "6.12"]
[White "Shubin, Kirill"]
[Black "Savchenko, Boris"]
[Result "0-1"]
[ECO "B52"]
[WhiteElo "2463"]
[BlackElo "2535"]
[Annotator "ChessBase"]
[PlyCount "92"]
[EventDate "2021.10.11"]
[EventType "blitz"]
[EventCountry "RUS"]
[SourceTitle "playchess.com"]
[Source "ChessBase"]
[SourceQuality "1"]
[TimeControl "180+2"]

1. e4 {[%emt 0:00:00]} c5 {[%emt 0:00:00]} 2. Nf3 {[%emt 0:00:00]} d6 {[%emt 0:
00:08]} 3. Bb5+ {[%emt 0:00:05]} Bd7 {[%emt 0:00:00]} 4. Qe2 {[%emt 0:00:00]}
Nf6 {[%emt 0:00:00]} 5. Bxd7+ {[%emt 0:00:09]} Qxd7 {[%emt 0:00:00]} 6. O-O {
[%emt 0:00:00]} Nc6 {[%emt 0:00:03]} 7. c3 {[%emt 0:00:01]} g6 {[%emt 0:00:16]}
8. d4 {[%emt 0:00:06]} Bg7 {[%emt 0:00:04]} 9. d5 {[%emt 0:00:28]} Na5 {
[%emt 0:00:24]} 10. b4 {[%emt 0:00:41]} cxb4 {[%emt 0:00:16]} 11. cxb4 {
[%emt 0:00:04]} Nh5 {[%emt 0:00:00]} 12. e5 {[%emt 0:00:27]} dxe5 {[%emt 0:00:
07]} 13. Rd1 {[%emt 0:00:44]} Nf4 {[%emt 0:00:39]} 14. Bxf4 {[%emt 0:00:06]}
exf4 {[%emt 0:00:05]} 15. Nbd2 {[%emt 0:00:00]} Bxa1 {[%emt 0:00:07]} 16. Rxa1
{[%emt 0:00:02]} Qxd5 {[%emt 0:00:03]} 17. bxa5 {[%emt 0:00:01]} Qxa5 {[%emt 0:
00:02]} 18. Qe4 {[%emt 0:00:15]} Qc3 {[%emt 0:00:14]} 19. Rb1 {[%emt 0:00:11]}
O-O {[%emt 0:00:04]} 20. Qxe7 {[%emt 0:00:00]} Qc2 {[%emt 0:00:12]} 21. Rxb7 {
[%emt 0:00:11]} Qxa2 {[%emt 0:00:26]} 22. h3 {[%emt 0:00:04]} Qe6 {[%emt 0:00:
04]} 23. Qc7 {[%emt 0:00:00]} a5 {[%emt 0:00:03]} 24. Ng5 {[%emt 0:00:07]} Qf5
{[%emt 0:00:03]} 25. Nge4 {[%emt 0:00:04]} Rac8 {[%emt 0:00:09]} 26. Qb6 {
[%emt 0:00:06]} Rcd8 {[%emt 0:00:00]} 27. Qb2 {[%emt 0:00:02]} h5 {[%emt 0:00:
12]} 28. Nf6+ {[%emt 0:00:01]} Kh8 {[%emt 0:00:00]} 29. Nfe4+ {[%emt 0:00:00]}
Kh7 {[%emt 0:00:05]} 30. Nf6+ {[%emt 0:00:01]} Kh6 {[%emt 0:00:00]} 31. Nfe4 {
[%emt 0:00:03]} Rfe8 {[%emt 0:00:03]} 32. Rb5 {[%emt 0:00:00]} Rxd2 {[%emt 0:
00:00]} 33. Nxd2 {[%emt 0:00:05]} Qd3 {[%emt 0:00:00]} 34. Nf1 {[%emt 0:00:04]}
f3 {[%emt 0:00:06]} 35. Qf6 {[%emt 0:00:00]} Qxb5 {[%emt 0:00:01]} 36. Qxf7 {
[%emt 0:00:04]} Qe5 {[%emt 0:00:04]} 37. Ne3 {[%emt 0:00:00]} fxg2 {[%emt 0:00:
00]} 38. Qa7 {[%emt 0:00:02]} Qe7 {[%emt 0:00:03]} 39. Qxa5 {[%emt 0:00:04]}
Qg5 {[%emt 0:00:00]} 40. Qb6 {[%emt 0:00:00]} Rf8 {[%emt 0:00:04]} 41. Qd6 {
[%emt 0:00:04]} Rxf2 {[%emt 0:00:04]} 42. Qd4 {[%emt 0:00:02]} Qf6 {[%emt 0:00:
04]} 43. Qd1 {[%emt 0:00:02]} Qf3 {[%emt 0:00:03]} 44. Qc1 {[%emt 0:00:02]} Qf4
{[%emt 0:00:00]} 45. Qc3 {[%emt 0:00:02]} Rf1+ {[%emt 0:00:01]} 46. Kxg2 {
[%emt 0:00:02]} Qf2# {[%emt 0:00:02]} 0-1

[Event "RUS-ch Blitz 2021"]
[Site "Sochi"]
[Date "2021.10.11"]
[Round "6.13"]
[White "Trushnikov, Sergey"]
[Black "Dudin, Gleb"]
[Result "1/2-1/2"]
[ECO "B25"]
[WhiteElo "2525"]
[BlackElo "2438"]
[Annotator "ChessBase"]
[PlyCount "66"]
[EventDate "2021.10.11"]
[EventType "blitz"]
[EventCountry "RUS"]
[SourceTitle "playchess.com"]
[Source "ChessBase"]
[SourceQuality "1"]
[TimeControl "180+2"]

1. e4 {[%emt 0:00:00]} c5 {[%emt 0:00:00]} 2. g3 {[%emt 0:00:00]} Nc6 {[%emt 0:
00:10]} 3. Bg2 {[%emt 0:00:03]} g6 {[%emt 0:00:00]} 4. Ne2 {[%emt 0:00:00]} Bg7
{[%emt 0:00:00]} 5. d3 {[%emt 0:00:00]} d6 {[%emt 0:00:06]} 6. O-O {[%emt 0:00:
07]} e5 {[%emt 0:00:00]} 7. Nd2 {[%emt 0:00:00]} Nge7 {[%emt 0:00:05]} 8. Nc3 {
[%emt 0:00:00]} O-O {[%emt 0:00:05]} 9. Nc4 {[%emt 0:00:00]} a6 {[%emt 0:00:26]
} 10. a4 {[%emt 0:00:00]} Be6 {[%emt 0:00:07]} 11. Nd5 {[%emt 0:00:00]} h6 {
[%emt 0:00:25]} 12. c3 {[%emt 0:00:00]} Kh7 {[%emt 0:00:00]} 13. a5 {[%emt 0:
00:06]} Rb8 {[%emt 0:00:22]} 14. Bd2 {[%emt 0:00:08]} f5 {[%emt 0:00:09]} 15.
f4 {[%emt 0:00:00]} exf4 {[%emt 0:00:09]} 16. Bxf4 {[%emt 0:00:22]} Ne5 {
[%emt 0:00:09]} 17. Bxe5 {[%emt 0:00:44]} dxe5 {[%emt 0:00:03]} 18. Nxe7 {
[%emt 0:00:03]} Qxe7 {[%emt 0:00:05]} 19. exf5 {[%emt 0:00:33]} gxf5 {[%emt 0:
00:00]} 20. Qh5 {[%emt 0:00:15]} Qg5 {[%emt 0:00:25]} 21. Qxg5 {[%emt 0:00:05]}
hxg5 {[%emt 0:00:00]} 22. g4 {[%emt 0:00:04]} f4 {[%emt 0:00:23]} 23. h3 {
[%emt 0:00:07]} Rfd8 {[%emt 0:00:07]} 24. Rae1 {[%emt 0:00:14]} Bxc4 {[%emt 0:
00:29]} 25. dxc4 {[%emt 0:00:00]} b6 {[%emt 0:00:00]} 26. axb6 {[%emt 0:00:05]}
Rxb6 {[%emt 0:00:00]} 27. Re2 {[%emt 0:00:08]} Bf6 {[%emt 0:00:00]} 28. Ra1 {
[%emt 0:00:08]} Kg7 {[%emt 0:00:08]} 29. Be4 {[%emt 0:00:00]} Rdb8 {[%emt 0:00:
04]} 30. Ra2 {[%emt 0:00:00]} Rd8 {[%emt 0:00:03]} 31. Ra1 {[%emt 0:00:14]}
Rdb8 {[%emt 0:00:00]} 32. Ra2 {[%emt 0:00:02]} Rd8 {[%emt 0:00:01]} 33. Ra1 {
[%emt 0:00:08]} Rdb8 {[%emt 0:00:04]} 1/2-1/2

[Event "RUS-ch Blitz 2021"]
[Site "Sochi"]
[Date "2021.10.11"]
[Round "6.14"]
[White "Pershin, Denis"]
[Black "Bologan, Victor"]
[Result "1-0"]
[ECO "E62"]
[WhiteElo "2388"]
[BlackElo "2574"]
[Annotator "ChessBase"]
[PlyCount "131"]
[EventDate "2021.10.11"]
[EventType "blitz"]
[EventCountry "RUS"]
[SourceTitle "playchess.com"]
[Source "ChessBase"]
[SourceQuality "1"]
[TimeControl "180+2"]

1. d4 {[%emt 0:00:00]} d6 {[%emt 0:00:09]} 2. Nf3 {[%emt 0:00:02]} Nf6 {
[%emt 0:00:00]} 3. c4 {[%emt 0:00:00]} g6 {[%emt 0:00:00]} 4. g3 {[%emt 0:00:
13]} Bg7 {[%emt 0:00:00]} 5. Bg2 {[%emt 0:00:00]} O-O {[%emt 0:00:00]} 6. O-O {
[%emt 0:00:00]} c6 {[%emt 0:00:04]} 7. Nc3 {[%emt 0:00:00]} Qa5 {[%emt 0:00:00]
} 8. Qc2 {[%emt 0:00:31]} Qh5 {[%emt 0:00:07]} 9. Bd2 {[%emt 0:00:17]} Bh3 {
[%emt 0:00:23]} 10. Bxh3 {[%emt 0:00:19]} Qxh3 {[%emt 0:00:01]} 11. Ne4 {
[%emt 0:00:00]} Nbd7 {[%emt 0:00:40]} 12. Neg5 {[%emt 0:00:09]} Qh5 {[%emt 0:
00:05]} 13. Kg2 {[%emt 0:00:25]} d5 {[%emt 0:00:12]} 14. Nh3 {[%emt 0:00:51]}
Qf5 {[%emt 0:00:01]} 15. Qxf5 {[%emt 0:00:04]} gxf5 {[%emt 0:00:00]} 16. cxd5 {
[%emt 0:00:03]} Nxd5 {[%emt 0:00:15]} 17. Nf4 {[%emt 0:00:05]} N7b6 {[%emt 0:
00:02]} 18. Rac1 {[%emt 0:00:05]} e6 {[%emt 0:00:06]} 19. Nd3 {[%emt 0:00:00]}
Nd7 {[%emt 0:00:02]} 20. b4 {[%emt 0:00:10]} f6 {[%emt 0:00:17]} 21. Nf4 {
[%emt 0:00:13]} Kf7 {[%emt 0:00:02]} 22. Nxd5 {[%emt 0:00:08]} exd5 {[%emt 0:
00:00]} 23. Ne1 {[%emt 0:00:00]} Nb6 {[%emt 0:00:05]} 24. Nd3 {[%emt 0:00:04]}
Nc4 {[%emt 0:00:00]} 25. Bc3 {[%emt 0:00:01]} Bh6 {[%emt 0:00:09]} 26. e3 {
[%emt 0:00:00]} b6 {[%emt 0:00:02]} 27. Rb1 {[%emt 0:00:00]} Ke6 {[%emt 0:00:
04]} 28. Kf3 {[%emt 0:00:08]} a6 {[%emt 0:00:09]} 29. Rfc1 {[%emt 0:00:00]}
Rfe8 {[%emt 0:00:00]} 30. h4 {[%emt 0:00:02]} Kd7 {[%emt 0:00:00]} 31. a4 {
[%emt 0:00:00]} Bxe3 {[%emt 0:00:04]} 32. Re1 {[%emt 0:00:06]} Bd2 {[%emt 0:00:
05]} 33. Rxe8 {[%emt 0:00:06]} Rxe8 {[%emt 0:00:01]} 34. Ba1 {[%emt 0:00:02]}
Bh6 {[%emt 0:00:21]} 35. Bc3 {[%emt 0:00:01]} Bd2 {[%emt 0:00:03]} 36. Ba1 {
[%emt 0:00:01]} Re4 {[%emt 0:00:09]} 37. a5 {[%emt 0:00:00]} bxa5 {[%emt 0:00:
05]} 38. bxa5 {[%emt 0:00:02]} Kd6 {[%emt 0:00:16]} 39. Nc5 {[%emt 0:00:00]}
Re7 {[%emt 0:00:02]} 40. Nb7+ {[%emt 0:00:02]} Kc7 {[%emt 0:00:04]} 41. Nc5 {
[%emt 0:00:02]} Bxa5 {[%emt 0:00:04]} 42. Nxa6+ {[%emt 0:00:09]} Kd6 {[%emt 0:
00:00]} 43. Rb8 {[%emt 0:00:00]} Re1 {[%emt 0:00:08]} 44. Rb7 {[%emt 0:00:07]}
Bb6 {[%emt 0:00:10]} 45. Bc3 {[%emt 0:00:00]} Rb1 {[%emt 0:00:03]} 46. Bb4+ {
[%emt 0:00:00]} c5 {[%emt 0:00:02]} 47. dxc5+ {[%emt 0:00:01]} Kc6 {[%emt 0:00:
00]} 48. Rb8 {[%emt 0:00:05]} Ba5 {[%emt 0:00:03]} 49. Bxa5 {[%emt 0:00:04]}
Rxb8 {[%emt 0:00:00]} 50. Nxb8+ {[%emt 0:00:00]} Kb7 {[%emt 0:00:02]} 51. Bc3 {
[%emt 0:00:03]} Kxb8 {[%emt 0:00:01]} 52. Kf4 {[%emt 0:00:00]} Kb7 {[%emt 0:00:
01]} 53. Kxf5 {[%emt 0:00:02]} Kc6 {[%emt 0:00:00]} 54. Bd4 {[%emt 0:00:01]}
Ne5 {[%emt 0:00:00]} 55. Kxf6 {[%emt 0:00:04]} Nf3 {[%emt 0:00:00]} 56. Be3 {
[%emt 0:00:00]} d4 {[%emt 0:00:03]} 57. Bxd4 {[%emt 0:00:03]} Nxd4 {[%emt 0:00:
01]} 58. Kg7 {[%emt 0:00:02]} Kxc5 {[%emt 0:00:01]} 59. Kxh7 {[%emt 0:00:00]}
Kd6 {[%emt 0:00:00]} 60. Kg6 {[%emt 0:00:02]} Nf3 {[%emt 0:00:03]} 61. h5 {
[%emt 0:00:02]} Ke7 {[%emt 0:00:02]} 62. Kg7 {[%emt 0:00:02]} Nd4 {[%emt 0:00:
00]} 63. h6 {[%emt 0:00:04]} Nf5+ {[%emt 0:00:02]} 64. Kg6 {[%emt 0:00:00]} Nd6
{[%emt 0:00:03]} 65. h7 {[%emt 0:00:01]} Nf7 {[%emt 0:00:04]} 66. Kg7 {[%emt 0:
00:00]} 1-0